[Event "48th Indian U15-ch Girls 2023"]
[Site "Jalgaon"]
[Date "2024.01.02"]
[Round "9.6"]
[White "Dhakshniga T"]
[Black "Anupam M Sreekumar"]
[Result "0-1"]
[ECO "B22"]
[WhiteElo "1416"]
[BlackElo "1642"]
[Annotator "NA RC"]
[PlyCount "74"]
[EventDate "2023.12.30"]
[EventType "swiss"]
[EventCountry "IND"]
[SourceTitle "playchess.com"]
[Source "ChessBase"]
[SourceQuality "1"]
[TimeControl "5400+30"]

1. e4 {[%emt 0:00:15]} c5 {[%emt 0:00:44]} 2. c3 {[%emt 0:00:37]} d5 {[%emt 0:00:38]} 3. exd5 {[%emt 0:00:43]} Qxd5 {[%emt 0:00:22]} 4. d4 {[%emt 0:00:43]} Nf6 {[%emt 0:00:36]} 5. Nf3 {[%emt 0:00:23]} e6 {[%emt 0:00:15]} 6. Be2 {[%emt 0:02:25]} Nc6 {[%emt 0:01:47]} 7. O-O {[%emt 0:03:32]} cxd4 {[%emt 0:01:53]} 8. cxd4 {[%emt 0:00:19]} Be7 {[%emt 0:01:14]} 9. Bf4 {[%emt 0:06:24]} O-O {[%emt 0:07:27]} 10. Nc3 {[%emt 0:01:12]} Qd8 {[%emt 0:01:39]} 11. Rc1 {[%emt 0:05:17]} b6 {[%emt 0:04:47]} 12. Bb5 {[%emt 0:18:52]} Bb7 {[%emt 0:02:14]} 13. a3 {[%emt 0:04:24]} Rc8 {[%emt 0:08:46]} 14. Qa4 {[%emt 0:05:17]} a6 {[%emt 0:01:41]} 15. Be2 {[%emt 0:00:14]} Nd5 {[%emt 0:04:31]} 16. Bg3 {[%emt 0:04:45]} b5 {[%emt 0:01:47]} 17. Qd1 {[%emt 0:02:19]} Nxc3 {[%emt 0:02:36]} 18. Rxc3 {[%emt 0:00:19]} Qd5 {[%emt 0:04:26]} 19. Qd3 {[%emt 0:08:27]} Rfd8 {[%emt 0:03:28]} 20. Rd1 {[%emt 0:01:44]} Na5 {[%emt 0:02:59]} 21. Bc7 {[%emt 0:03:59]} Nc4 {[%emt 0:05:54]} 22. Bxd8 {[%emt 0:02:24]} Nxb2 {[%emt 0:01:24]} 23. Qd2 {[%emt 0:06:16]} Rxc3 {[%emt 0:00:22]} 24. Qxb2 {[%emt 0:00:40]} Rb3 {[%emt 0:00:48]} 25. Qc2 {[%emt 0:01:33]} Bxd8 {[%emt 0:00:55]} 26. Ra1 {[%emt 0:00:12]} Ba5 {[%emt 0:03:07]} 27. a4 {[%emt 0:02:37]} Rc3 {[%emt 0:00:52]} 28. Qb2 {[%emt 0:01:11]} Qe4 {[%emt 0:01:41]} 29. Bf1 {[%emt 0:04:20]} Rxf3 {[%emt 0:02:18]} 30. Rc1 {[%emt 0:08:27]} b4 {[%emt 0:05:23]} 31. Rc5 {[%emt 0:01:41]} Rf5 {[%emt 0:00:50]} 32. Rxf5 {[%emt 0:03:05]} Qxf5 {[%emt 0:01:44]} 33. Qc1 {[%emt 0:00:38]} Qd5 {[%emt 0:00:12]} 34. Qd2 {[%emt 0:00:30]} b3 {[%emt 0:00:11]} 35. Qb2 {[%emt 0:00:22]} Bb6 {[%emt 0:00:09]} 36. Qc3 {[%emt 0:00:14]} Bxd4 {[%emt 0:00:11]} 37. Qc7 {[%emt 0:00:14]} g6 {[%emt 0:00:18]} 0-1

[Event "48th Indian U15-ch Girls 2023"]
[Site "Jalgaon"]
[Date "2024.01.02"]
[Round "9.7"]
[White "Nivedita V C"]
[Black "Asmita Avijit Ray"]
[Result "1-0"]
[ECO "D10"]
[WhiteElo "1638"]
[BlackElo "1470"]
[Annotator "NA RC"]
[PlyCount "149"]
[EventDate "2023.12.30"]
[EventType "swiss"]
[EventCountry "IND"]
[SourceTitle "playchess.com"]
[Source "ChessBase"]
[SourceQuality "1"]
[TimeControl "5400+30"]

1. d4 {[%emt 0:01:45]} d5 {[%emt 0:00:08]} 2. c4 {[%emt 0:00:05]} c6 {[%emt 0:00:10]} 3. Nc3 {[%emt 0:00:03]} Nf6 {[%emt 0:00:46]} 4. cxd5 {[%emt 0:00:34]} cxd5 {[%emt 0:00:07]} 5. Bf4 {[%emt 0:00:07]} Nc6 {[%emt 0:00:21]} 6. e3 {[%emt 0:00:11]} a6 {[%emt 0:00:56]} 7. Bd3 {[%emt 0:00:11]} Bg4 {[%emt 0:05:21]} 8. f3 {[%emt 0:01:54]} Bc8 {[%emt 0:04:32]} 9. g4 {[%emt 0:01:35]} e6 {[%emt 0:04:31]} 10. Nge2 {[%emt 0:00:28]} Bd6 {[%emt 0:02:14]} 11. O-O {[%emt 0:02:27]} h6 {[%emt 0:02:32]} 12. Qe1 {[%emt 0:05:13]} Qc7 {[%emt 0:23:58]} 13. Qg3 {[%emt 0:00:44]} Bxf4 {[%emt 0:02:27]} 14. Nxf4 {[%emt 0:00:04]} Qb6 {[%emt 0:01:12]} 15. Rf2 {[%emt 0:05:56]} Qc7 {[%emt 0:05:54]} 16. Rg2 {[%emt 0:02:41]} Bd7 {[%emt 0:03:10]} 17. Rc1 {[%emt 0:08:07]} Rc8 {[%emt 0:05:37]} 18. g5 {[%emt 0:02:26]} hxg5 {[%emt 0:05:04]} 19. Qxg5 {[%emt 0:00:02]} Rg8 {[%emt 0:01:28]} 20. Nh5 {[%emt 0:07:11]} Nxh5 {[%emt 0:06:52]} 21. Qxh5 {[%emt 0:00:02]} Kf8 {[%emt 0:08:58]} 22. Kh1 {[%emt 0:01:20]} Be8 {[%emt 0:01:48]} 23. Rcg1 {[%emt 0:01:54]} f5 {[%emt 0:05:07]} 24. Qh7 {[%emt 0:02:01]} g6 {[%emt 0:00:43]} 25. Qh4 {[%emt 0:02:51]} Qe7 {[%emt 0:01:55]} 26. Qh6+ {[%emt 0:02:03]} Qg7 {[%emt 0:00:41]} 27. Qf4 {[%emt 0:00:14]} Qc7 {[%emt 0:00:13]} 28. Qh6+ {[%emt 0:01:16]} Qg7 {[%emt 0:00:05]} 29. Qg5 {[%emt 0:01:15]} Qe7 {[%emt 0:00:27]} 30. Qg3 {[%emt 0:02:57]} Qc7 {[%emt 0:00:51]} 31. Qh4 {[%emt 0:00:13]} Qg7 {[%emt 0:00:36]} 32. Nxd5 {[%emt 0:02:48]} exd5 {[%emt 0:03:11]} 33. Bxf5 {[%emt 0:00:08]} Rd8 {[%emt 0:02:53]} 34. Qf4 {[%emt 0:03:43]} Qf6 {[%emt 0:00:50]} 35. Qh6+ {[%emt 0:01:08]} Ke7 {[%emt 0:00:52]} 36. Qf4 {[%emt 0:06:38]} Bd7 {[%emt 0:01:01]} 37. Rxg6 {[%emt 0:00:36]} Rxg6 {[%emt 0:00:36]} 38. Rxg6 {[%emt 0:00:12]} Qxf5 {[%emt 0:00:27]} 39. Qh4+ {[%emt 0:00:03]} Ke8 {[%emt 0:00:07]} 40. Qh8+ {[%emt 0:00:09]} Ke7 {[%emt 0:01:02]} 41. Qh7+ {[%emt 0:00:40]} Qf7 {[%emt 0:00:13]} 42. Rg7 {[%emt 0:00:10]} Rf8 {[%emt 0:00:03]} 43. f4 {[%emt 0:00:33]} Ke8 {[%emt 0:00:21]} 44. Rxf7 {[%emt 0:00:05]} Rxf7 {[%emt 0:00:04]} 45. Qg8+ {[%emt 0:00:19]} Ke7 {[%emt 0:00:10]} 46. h4 {[%emt 0:00:12]} Bf5 {[%emt 0:00:28]} 47. Kg2 {[%emt 0:01:08]} Nd8 {[%emt 0:01:05]} 48. h5 {[%emt 0:00:30]} Ne6 {[%emt 0:01:34]} 49. h6 {[%emt 0:00:23]} Be4+ {[%emt 0:00:30]} 50. Kf2 {[%emt 0:00:14]} Rh7 {[%emt 0:00:08]} 51. Qc8 {[%emt 0:01:20]} Kf6 {[%emt 0:00:19]} 52. Qb8 {[%emt 0:02:09]} Kg6 {[%emt 0:01:10]} 53. Qe5 {[%emt 0:00:16]} Re7 {[%emt 0:00:26]} 54. h7 {[%emt 0:01:21]} Kxh7 {[%emt 0:00:41]} 55. f5 {[%emt 0:00:05]} Rf7 {[%emt 0:00:22]} 56. Qxe6 {[%emt 0:00:07]} Rxf5+ {[%emt 0:00:04]} 57. Kg3 {[%emt 0:00:30]} Kg7 {[%emt 0:00:57]} 58. Kg4 {[%emt 0:00:11]} Rf7 {[%emt 0:00:06]} 59. Kg5 {[%emt 0:00:12]} Kf8 {[%emt 0:00:33]} 60. Qd6+ {[%emt 0:00:42]} Ke8 {[%emt 0:00:25]} 61. Qb8+ {[%emt 0:00:05]} Ke7 {[%emt 0:00:16]} 62. Qxb7+ {[%emt 0:00:04]} Kf8 {[%emt 0:00:10]} 63. Qxa6 {[%emt 0:00:13]} Rf5+ {[%emt 0:00:16]} 64. Kg4 {[%emt 0:00:08]} Rf2 {[%emt 0:00:18]} 65. Qh6+ {[%emt 0:00:32]} Kf7 {[%emt 0:00:12]} 66. Qh5+ {[%emt 0:00:12]} Kg7 {[%emt 0:00:29]} 67. Qe5+ {[%emt 0:00:05]} Kf7 {[%emt 0:00:07]} 68. Qc7+ {[%emt 0:00:33]} Kg6 {[%emt 0:01:02]} 69. Qc6+ {[%emt 0:00:22]} Kg7 {[%emt 0:00:21]} 70. b4 {[%emt 0:00:29]} Rg2+ {[%emt 0:01:07]} 71. Kf4 {[%emt 0:00:24]} Rf2+ {[%emt 0:00:12]} 72. Ke5 {[%emt 0:00:27]} Rxa2 {[%emt 0:00:46]} 73. b5 {[%emt 0:00:18]} Re2 {[%emt 0:01:29]} 74. Qc7+ {[%emt 0:00:16]} Kf8 {[%emt 0:00:12]} 75. Ke6 {[%emt 0:00:09]} 1-0

[Event "48th Indian U15-ch Girls 2023"]
[Site "Jalgaon"]
[Date "2024.01.02"]
[Round "9.8"]
[White "Krishika Garg"]
[Black "Arshiya Das"]
[Result "0-1"]
[ECO "B52"]
[WhiteElo "1529"]
[BlackElo "1729"]
[Annotator "NA RC"]
[PlyCount "110"]
[EventDate "2023.12.30"]
[EventType "swiss"]
[EventCountry "IND"]
[SourceTitle "playchess.com"]
[Source "ChessBase"]
[SourceQuality "1"]
[TimeControl "5400+30"]

1. e4 {[%emt 0:01:06]} c5 {[%emt 0:00:07]} 2. Nf3 {[%emt 0:00:07]} d6 {[%emt 0:00:07]} 3. Bb5+ {[%emt 0:00:06]} Bd7 {[%emt 0:00:07]} 4. c4 {[%emt 0:00:05]} a6 {[%emt 0:05:08]} 5. Bxd7+ {[%emt 0:00:06]} Nxd7 {[%emt 0:01:15]} 6. Nc3 {[%emt 0:00:08]} Ngf6 {[%emt 0:01:27]} 7. d4 {[%emt 0:00:29]} cxd4 {[%emt 0:00:41]} 8. Nxd4 {[%emt 0:00:02]} g6 {[%emt 0:00:45]} 9. O-O {[%emt 0:01:23]} Bg7 {[%emt 0:00:42]} 10. b3 {[%emt 0:01:01]} O-O {[%emt 0:01:28]} 11. Bb2 {[%emt 0:04:19]} Ne5 {[%emt 0:02:04]} 12. Qe2 {[%emt 0:02:04]} Rc8 {[%emt 0:04:27]} 13. Rfd1 {[%emt 0:02:24]} Qa5 {[%emt 0:06:29]} 14. Rac1 {[%emt 0:19:33]} Rfe8 {[%emt 0:04:49]} 15. Rc2 {[%emt 0:17:17]} Nfd7 {[%emt 0:16:23]} 16. Nd5 {[%emt 0:09:05]} Nb8 {[%emt 0:05:12]} 17. b4 {[%emt 0:09:44]} Qd8 {[%emt 0:00:13]} 18. c5 {[%emt 0:01:23]} Ned7 {[%emt 0:11:19]} 19. cxd6 {[%emt 0:03:49]} exd6 {[%emt 0:00:20]} 20. Rxc8 {[%emt 0:04:26]} Qxc8 {[%emt 0:00:02]} 21. Rc1 {[%emt 0:04:11]} Qd8 {[%emt 0:00:04]} 22. f3 {[%emt 0:03:36]} Nb6 {[%emt 0:02:27]} 23. Qf2 {[%emt 0:07:43]} Nxd5 {[%emt 0:00:44]} 24. exd5 {[%emt 0:00:02]} Qb6 {[%emt 0:00:06]} 25. Bc3 {[%emt 0:01:37]} Nd7 {[%emt 0:01:07]} 26. a4 {[%emt 0:04:03]} Ne5 {[%emt 0:03:16]} 27. a5 {[%emt 0:00:23]} Qa7 {[%emt 0:00:20]} 28. Rd1 {[%emt 0:01:35]} Rc8 {[%emt 0:01:58]} 29. Ne2 {[%emt 0:01:26]} Qb8 {[%emt 0:01:27]} 30. Bxe5 {[%emt 0:01:24]} Bxe5 {[%emt 0:00:03]} 31. f4 {[%emt 0:00:16]} Bg7 {[%emt 0:00:31]} 32. Rc1 {[%emt 0:00:48]} Rxc1+ {[%emt 0:00:31]} 33. Nxc1 {[%emt 0:00:01]} Qc7 {[%emt 0:00:17]} 34. Qe1 {[%emt 0:01:07]} Bc3 {[%emt 0:00:31]} 35. Qe8+ {[%emt 0:00:18]} Kg7 {[%emt 0:00:02]} 36. Ne2 {[%emt 0:00:44]} Bxb4 {[%emt 0:00:17]} 37. h3 {[%emt 0:00:15]} Qc5+ {[%emt 0:00:37]} 38. Kh2 {[%emt 0:00:12]} Qxd5 {[%emt 0:00:17]} 39. Ng3 {[%emt 0:00:30]} Bxa5 {[%emt 0:01:20]} 40. Qe7 {[%emt 0:00:14]} Bd2 {[%emt 0:03:36]} 41. f5 {[%emt 0:00:52]} Qe5 {[%emt 0:00:37]} 42. f6+ {[%emt 0:00:12]} Qxf6 {[%emt 0:06:01]} 43. Qxf6+ {[%emt 0:00:07]} Kxf6 {[%emt 0:00:00]} 44. Ne4+ {[%emt 0:00:03]} Ke5 {[%emt 0:00:20]} 45. Nxd2 {[%emt 0:00:04]} b5 {[%emt 0:00:14]} 46. Nb3 {[%emt 0:00:29]} Kd5 {[%emt 0:00:41]} 47. Kg3 {[%emt 0:00:09]} Kc4 {[%emt 0:00:43]} 48. Na5+ {[%emt 0:00:02]} Kc3 {[%emt 0:00:07]} 49. Nb7 {[%emt 0:00:42]} b4 {[%emt 0:00:27]} 50. Nxd6 {[%emt 0:00:04]} b3 {[%emt 0:00:04]} 51. Ne4+ {[%emt 0:00:05]} Kc2 {[%emt 0:00:04]} 52. Nd6 {[%emt 0:02:02]} b2 {[%emt 0:00:14]} 53. Nc4 {[%emt 0:00:06]} b1=Q {[%emt 0:00:05]} 54. Na3+ {[%emt 0:00:04]} Kb2 {[%emt 0:00:02]} 55. Nxb1 {[%emt 0:00:05]} Kxb1 {[%emt 0:00:04]} 0-1

[Event "48th Indian U15-ch Girls 2023"]
[Site "Jalgaon"]
[Date "2024.01.02"]
[Round "9.9"]
[White "Kirthika B"]
[Black "Arya G Mallar"]
[Result "0-1"]
[ECO "C02"]
[WhiteElo "1605"]
[BlackElo "1460"]
[Annotator "NA RC"]
[PlyCount "120"]
[EventDate "2023.12.30"]
[EventType "swiss"]
[EventCountry "IND"]
[SourceTitle "playchess.com"]
[Source "ChessBase"]
[SourceQuality "1"]
[TimeControl "5400+30"]

1. e4 {[%emt 0:00:03]} c6 {[%emt 0:00:53]} 2. d4 {[%emt 0:01:07]} d5 {[%emt 0:00:06]} 3. f3 {[%emt 0:00:37]} e6 {[%emt 0:00:15]} 4. e5 {[%emt 0:00:45]} c5 {[%emt 0:00:44]} 5. c3 {[%emt 0:00:21]} Nc6 {[%emt 0:00:24]} 6. f4 {[%emt 0:00:47]} Qb6 {[%emt 0:01:42]} 7. Nf3 {[%emt 0:00:20]} Bd7 {[%emt 0:01:41]} 8. Be2 {[%emt 0:15:31]} Nh6 {[%emt 0:03:24]} 9. dxc5 {[%emt 0:33:00]} Bxc5 {[%emt 0:00:27]} 10. Qb3 {[%emt 0:01:47]} Bf2+ {[%emt 0:06:08]} 11. Kf1 {[%emt 0:01:27]} Qc5 {[%emt 0:04:54]} 12. Qb5 {[%emt 0:04:04]} Nf5 {[%emt 0:03:41]} 13. Na3 {[%emt 0:10:44]} a6 {[%emt 0:08:03]} 14. Qxc5 {[%emt 0:01:47]} Bxc5 {[%emt 0:00:03]} 15. Nc2 {[%emt 0:00:33]} h5 {[%emt 0:03:03]} 16. b4 {[%emt 0:03:10]} Ba7 {[%emt 0:04:14]} 17. a4 {[%emt 0:02:52]} O-O {[%emt 0:04:14]} 18. Bd3 {[%emt 0:01:29]} Nce7 {[%emt 0:03:12]} 19. Bd2 {[%emt 0:01:18]} Rfc8 {[%emt 0:05:15]} 20. Ke2 {[%emt 0:00:46]} Rc7 {[%emt 0:03:24]} 21. Rhc1 {[%emt 0:04:46]} Rac8 {[%emt 0:03:16]} 22. Rcb1 {[%emt 0:02:54]} Bb6 {[%emt 0:07:29]} 23. a5 {[%emt 0:01:48]} Ba7 {[%emt 0:00:11]} 24. Na3 {[%emt 0:00:32]} Rxc3 {[%emt 0:04:15]} 25. Bxc3 {[%emt 0:00:41]} Rxc3 {[%emt 0:00:02]} 26. Nc2 {[%emt 0:02:45]} Bb5 {[%emt 0:02:39]} 27. Bxb5 {[%emt 0:01:33]} Rxc2+ {[%emt 0:00:53]} 28. Kd3 {[%emt 0:00:36]} Rxg2 {[%emt 0:01:35]} 29. Ba4 {[%emt 0:00:18]} Ng6 {[%emt 0:02:18]} 30. Kc3 {[%emt 0:03:29]} Nxf4 {[%emt 0:01:28]} 31. b5 {[%emt 0:01:27]} axb5 {[%emt 0:10:23]} 32. Rxb5 {[%emt 0:02:15]} Rf2 {[%emt 0:00:22]} 33. Bd1 {[%emt 0:00:43]} Rxf3+ {[%emt 0:02:34]} 34. Bxf3 {[%emt 0:00:05]} Bd4+ {[%emt 0:00:04]} 35. Kd2 {[%emt 0:01:08]} Bxa1 {[%emt 0:00:43]} 36. Rxb7 {[%emt 0:01:18]} Bxe5 {[%emt 0:01:39]} 37. a6 {[%emt 0:00:00]} Bd4 {[%emt 0:00:38]} 38. Rb4 {[%emt 0:00:11]} Be3+ {[%emt 0:00:30]} 39. Kd1 {[%emt 0:00:30]} g5 {[%emt 0:01:30]} 40. Rb3 {[%emt 0:00:30]} Bg1 {[%emt 0:02:20]} 41. Rb2 {[%emt 0:00:31]} Nd6 {[%emt 0:00:36]} 42. Be2 {[%emt 0:00:31]} Kg7 {[%emt 0:01:00]} 43. Ke1 {[%emt 0:00:29]} Nc8 {[%emt 0:01:04]} 44. Rb8 {[%emt 0:00:30]} Na7 {[%emt 0:00:21]} 45. Rb7 {[%emt 0:00:13]} e5 {[%emt 0:01:17]} 46. Bf1 {[%emt 0:00:38]} e4 {[%emt 0:00:40]} 47. Rd7 {[%emt 0:00:24]} g4 {[%emt 0:00:56]} 48. Be2 {[%emt 0:00:31]} Kg6 {[%emt 0:01:23]} 49. Kf1 {[%emt 0:00:23]} Be3 {[%emt 0:00:41]} 50. Rd6+ {[%emt 0:00:15]} Kg5 {[%emt 0:00:38]} 51. Rd7 {[%emt 0:00:09]} f6 {[%emt 0:00:47]} 52. Rf7 {[%emt 0:00:13]} Bd4 {[%emt 0:00:28]} 53. Rd7 {[%emt 0:00:13]} Be3 {[%emt 0:00:41]} 54. Rf7 {[%emt 0:00:05]} h4 {[%emt 0:00:43]} 55. Rg7+ {[%emt 0:00:22]} Ng6 {[%emt 0:01:51]} 56. Rd7 {[%emt 0:00:44]} g3 {[%emt 0:01:11]} 57. Rxd5+ {[%emt 0:00:07]} f5 {[%emt 0:00:44]} 58. hxg3 {[%emt 0:00:16]} hxg3 {[%emt 0:00:36]} 59. Rd7 {[%emt 0:00:18]} Nh4 {[%emt 0:00:25]} 60. Rg7+ {[%emt 0:01:16]} Kf4 {[%emt 0:00:17]} 0-1

[Event "48th Indian U15-ch Girls 2023"]
[Site "Jalgaon"]
[Date "2024.01.03"]
[Round "10.1"]
[White "Akshaya Sathi"]
[Black "Mrittika Mallick"]
[Result "0-1"]
[ECO "B87"]
[WhiteElo "1542"]
[BlackElo "1970"]
[Annotator "RC"]
[PlyCount "104"]
[EventDate "2023.12.30"]
[EventType "swiss"]
[EventCountry "IND"]
[SourceTitle "playchess.com"]
[Source "ChessBase"]
[SourceQuality "1"]
[TimeControl "5400+30"]

1. e4 {[%emt 0:01:01]} c5 {[%emt 0:00:07]} 2. Nf3 {[%emt 0:00:18]} d6 {[%emt 0:00:10]} 3. d4 {[%emt 0:00:19]} cxd4 {[%emt 0:00:08]} 4. Nxd4 {[%emt 0:00:06]} Nf6 {[%emt 0:00:07]} 5. Nc3 {[%emt 0:00:09]} a6 {[%emt 0:00:07]} 6. Bc4 {[%emt 0:01:18]} e6 {[%emt 0:00:09]} 7. Bb3 {[%emt 0:00:11]} Nbd7 {[%emt 0:00:18]} 8. Bg5 {[%emt 0:00:22]} Nc5 {[%emt 0:00:24]} 9. Qf3 {[%emt 0:01:07]} Be7 {[%emt 0:01:42]} 10. O-O-O {[%emt 0:00:35]} Qc7 {[%emt 0:01:08]} 11. Rhe1 {[%emt 0:02:18]} O-O {[%emt 0:07:20]} 12. Qg3 {[%emt 0:02:22]} b5 {[%emt 0:05:40]} 13. Bh6 {[%emt 0:21:03]} Ne8 {[%emt 0:03:32]} 14. Kb1 {[%emt 0:11:28]} Bb7 {[%emt 0:12:26]} 15. f3 {[%emt 0:03:50]} Qd8 {[%emt 0:06:47]} 16. Qg4 {[%emt 0:05:29]} Kh8 {[%emt 0:02:24]} 17. Be3 {[%emt 0:02:32]} b4 {[%emt 0:03:17]} 18. Na4 {[%emt 0:05:11]} Qa5 {[%emt 0:06:12]} 19. Nxc5 {[%emt 0:00:34]} dxc5 {[%emt 0:00:02]} 20. Ne2 {[%emt 0:03:15]} Nf6 {[%emt 0:08:59]} 21. Qg3 {[%emt 0:09:25]} Rfc8 {[%emt 0:04:56]} 22. Bc4 {[%emt 0:02:45]} Bc6 {[%emt 0:01:47]} 23. Nf4 {[%emt 0:07:52]} Bb5 {[%emt 0:01:50]} 24. Be2 {[%emt 0:00:24]} Bxe2 {[%emt 0:01:38]} 25. Rxe2 {[%emt 0:00:39]} c4 {[%emt 0:04:04]} 26. e5 {[%emt 0:04:33]} Ne8 {[%emt 0:05:50]} 27. Rd7 {[%emt 0:02:31]} Rc7 {[%emt 0:00:08]} 28. Rxc7 {[%emt 0:00:46]} Qxc7 {[%emt 0:00:34]} 29. Rd2 {[%emt 0:02:23]} Rb8 {[%emt 0:04:58]} 30. Bd4 {[%emt 0:02:58]} a5 {[%emt 0:03:42]} 31. Ne2 {[%emt 0:02:43]} a4 {[%emt 0:00:54]} 32. f4 {[%emt 0:00:31]} b3 {[%emt 0:01:21]} 33. a3 {[%emt 0:00:45]} bxc2+ {[%emt 0:01:25]} 34. Rxc2 {[%emt 0:01:29]} Rb3 {[%emt 0:00:09]} 35. Rc3 {[%emt 0:01:59]} Bxa3 {[%emt 0:03:45]} 36. Rxb3 {[%emt 0:00:12]} cxb3 {[%emt 0:00:01]} 37. Qc3 {[%emt 0:01:04]} Qb7 {[%emt 0:00:27]} 38. bxa3 {[%emt 0:01:44]} Qe4+ {[%emt 0:00:09]} 39. Kc1 {[%emt 0:00:39]} Qxe2 {[%emt 0:00:10]} 40. Qd2 {[%emt 0:00:51]} Qc4+ {[%emt 0:00:24]} 41. Kb2 {[%emt 0:00:22]} Nc7 {[%emt 0:01:53]} 42. g3 {[%emt 0:00:51]} Nd5 {[%emt 0:00:49]} 43. Bf2 {[%emt 0:00:11]} h5 {[%emt 0:01:07]} 44. h3 {[%emt 0:00:39]} h4 {[%emt 0:00:25]} 45. Be1 {[%emt 0:00:41]} Qe4 {[%emt 0:01:09]} 46. g4 {[%emt 0:00:26]} Nxf4 {[%emt 0:00:45]} 47. Bxh4 {[%emt 0:00:37]} Nd3+ {[%emt 0:01:53]} 48. Kc3 {[%emt 0:00:20]} b2 {[%emt 0:00:18]} 49. Qd1 {[%emt 0:00:24]} Qc6+ {[%emt 0:00:27]} 50. Kxd3 {[%emt 0:00:46]} Qd5+ {[%emt 0:00:06]} 51. Kc2 {[%emt 0:00:08]} Qxd1+ {[%emt 0:00:07]} 52. Kxd1 {[%emt 0:00:04]} b1=Q+ {[%emt 0:00:09]} 0-1

[Event "48th Indian U15-ch Girls 2023"]
[Site "Jalgaon"]
[Date "2024.01.03"]
[Round "10.2"]
[White "Sachi Jain"]
[Black "Shubhi Gupta"]
[Result "1-0"]
[ECO "C55"]
[WhiteElo "1844"]
[BlackElo "1902"]
[Annotator "RC"]
[PlyCount "67"]
[EventDate "2023.12.30"]
[EventType "swiss"]
[EventCountry "IND"]
[SourceTitle "playchess.com"]
[Source "ChessBase"]
[SourceQuality "1"]
[TimeControl "5400+30"]

1. e4 {[%emt 0:01:43]} e5 {[%emt 0:02:42]} 2. Nf3 {[%emt 0:00:22]} Nc6 {[%emt 0:00:23]} 3. Bc4 {[%emt 0:00:09]} Nf6 {[%emt 0:01:42]} 4. d3 {[%emt 0:00:26]} h6 {[%emt 0:00:36]} 5. a4 {[%emt 0:01:50]} a5 {[%emt 0:07:06]} 6. c3 {[%emt 0:01:11]} d6 {[%emt 0:00:26]} 7. Nbd2 {[%emt 0:02:05]} g6 {[%emt 0:01:24]} 8. Nf1 {[%emt 0:02:44]} Bg7 {[%emt 0:02:02]} 9. h3 {[%emt 0:01:27]} O-O {[%emt 0:02:20]} 10. Bb3 {[%emt 0:00:46]} d5 {[%emt 0:01:45]} 11. Qe2 {[%emt 0:05:39]} Be6 {[%emt 0:00:43]} 12. Bc2 {[%emt 0:00:16]} Nd7 {[%emt 0:09:17]} 13. g4 {[%emt 0:05:18]} Nb6 {[%emt 0:03:11]} 14. Ng3 {[%emt 0:02:55]} dxe4 {[%emt 0:03:37]} 15. dxe4 {[%emt 0:00:56]} Bc4 {[%emt 0:02:12]} 16. Qe3 {[%emt 0:01:36]} Qd7 {[%emt 0:01:40]} 17. b3 {[%emt 0:08:19]} Ba6 {[%emt 0:01:39]} 18. Bd2 {[%emt 0:02:11]} Rfd8 {[%emt 0:01:18]} 19. O-O-O {[%emt 0:00:57]} Qe7 {[%emt 0:01:25]} 20. Kb1 {[%emt 0:01:42]} Nd7 {[%emt 0:01:33]} 21. c4 {[%emt 0:01:39]} Nb6 {[%emt 0:11:00]} 22. h4 {[%emt 0:05:46]} Nd4 {[%emt 0:03:43]} 23. Bc3 {[%emt 0:03:20]} Qc5 {[%emt 0:03:41]} 24. Ne2 {[%emt 0:04:45]} Bxc4 {[%emt 0:07:56]} 25. Nexd4 {[%emt 0:04:39]} exd4 {[%emt 0:00:06]} 26. Bxd4 {[%emt 0:00:02]} Qb4 {[%emt 0:02:49]} 27. Bc5 {[%emt 0:05:05]} Qc3 {[%emt 0:07:12]} 28. Qxc3 {[%emt 0:00:34]} Bxc3 {[%emt 0:00:05]} 29. bxc4 {[%emt 0:00:04]} Nxc4 {[%emt 0:00:16]} 30. Bb3 {[%emt 0:00:25]} Nd2+ {[%emt 0:01:26]} 31. Nxd2 {[%emt 0:00:07]} Bxd2 {[%emt 0:00:04]} 32. Kc2 {[%emt 0:00:08]} Bf4 {[%emt 0:00:07]} 33. Rxd8+ {[%emt 0:00:10]} Rxd8 {[%emt 0:00:05]} 34. Rd1 {[%emt 0:00:02]} 1-0

[Event "48th Indian U15-ch Girls 2023"]
[Site "Jalgaon"]
[Date "2024.01.03"]
[Round "10.3"]
[White "Bhat Sannidhi Ramakrishna"]
[Black "Sneha Halder"]
[Result "0-1"]
[ECO "A44"]
[WhiteElo "1637"]
[BlackElo "1766"]
[Annotator "NA RC"]
[PlyCount "78"]
[EventDate "2023.12.30"]
[EventType "swiss"]
[EventCountry "IND"]
[SourceTitle "playchess.com"]
[Source "ChessBase"]
[SourceQuality "1"]
[TimeControl "5400+30"]

1. d4 {[%emt 0:00:03]} c5 {[%emt 0:00:24]} 2. d5 {[%emt 0:00:10]} e5 {[%emt 0:00:07]} 3. e4 {[%emt 0:00:23]} d6 {[%emt 0:00:10]} 4. Nc3 {[%emt 0:00:30]} Ne7 {[%emt 0:02:44]} 5. Nf3 {[%emt 0:02:35]} g6 {[%emt 0:00:27]} 6. Nd2 {[%emt 0:08:45]} Bd7 {[%emt 0:05:51]} 7. Nc4 {[%emt 0:04:15]} Nc8 {[%emt 0:00:02]} 8. a4 {[%emt 0:02:31]} Nb6 {[%emt 0:04:01]} 9. Ne3 {[%emt 0:14:34]} a5 {[%emt 0:02:30]} 10. h4 {[%emt 0:09:57]} h5 {[%emt 0:05:04]} 11. Nb5 {[%emt 0:07:18]} Na6 {[%emt 0:02:12]} 12. Nc4 {[%emt 0:03:42]} Nxc4 {[%emt 0:05:22]} 13. Bxc4 {[%emt 0:00:02]} Be7 {[%emt 0:00:12]} 14. O-O {[%emt 0:04:54]} Nc7 {[%emt 0:03:47]} 15. Nxc7+ {[%emt 0:06:59]} Qxc7 {[%emt 0:00:16]} 16. f4 {[%emt 0:00:12]} f5 {[%emt 0:17:22]} 17. Ra3 {[%emt 0:10:09]} O-O-O {[%emt 0:03:49]} 18. fxe5 {[%emt 0:01:58]} dxe5 {[%emt 0:00:17]} 19. Bg5 {[%emt 0:00:23]} Bxg5 {[%emt 0:03:09]} 20. d6 {[%emt 0:00:26]} Qc6 {[%emt 0:02:15]} 21. Bd5 {[%emt 0:07:30]} Qxd6 {[%emt 0:00:12]} 22. hxg5 {[%emt 0:04:30]} Bc6 {[%emt 0:04:30]} 23. Rd3 {[%emt 0:00:26]} c4 {[%emt 0:00:36]} 24. Rd2 {[%emt 0:02:54]} fxe4 {[%emt 0:02:20]} 25. Bxc6 {[%emt 0:05:56]} Qxd2 {[%emt 0:06:28]} 26. Qxd2 {[%emt 0:00:04]} Rxd2 {[%emt 0:00:01]} 27. Bxe4 {[%emt 0:00:01]} Rd4 {[%emt 0:06:05]} 28. Bxg6 {[%emt 0:01:17]} Rg8 {[%emt 0:00:00]} 29. Bf5+ {[%emt 0:01:24]} Kc7 {[%emt 0:02:39]} 30. Re1 {[%emt 0:00:55]} Rxg5 {[%emt 0:01:44]} 31. Rxe5 {[%emt 0:00:16]} Rd7 {[%emt 0:13:19]} 32. Rc5+ {[%emt 0:00:40]} Kd6 {[%emt 0:00:01]} 33. Rb5 {[%emt 0:00:24]} Rf7 {[%emt 0:00:32]} 34. Be4 {[%emt 0:00:43]} Rxb5 {[%emt 0:00:19]} 35. axb5 {[%emt 0:00:01]} Re7 {[%emt 0:00:40]} 36. Bf3 {[%emt 0:00:15]} Re5 {[%emt 0:00:01]} 37. b3 {[%emt 0:00:53]} Rxb5 {[%emt 0:00:08]} 38. bxc4 {[%emt 0:00:17]} Rc5 {[%emt 0:00:19]} 39. Bxb7 {[%emt 0:00:09]} a4 {[%emt 0:00:06]} 0-1